[Event "7th Altibox Norway Chess Blitz 2019"]
[Site "Stavanger"]
[Date "2019.06.03"]
[Round "1.1"]
[White "Aronian, Levon"]
[Black "Carlsen, Magnus"]
[Result "1-0"]
[ECO "B07"]
[WhiteElo "2827"]
[BlackElo "2923"]
[Annotator "ChessBase"]
[PlyCount "73"]
[EventDate "2019.06.03"]
[EventType "tourn"]
[EventCountry "NOR"]
[SourceTitle "playchess.com"]
[Source "ChessBase"]
[SourceQuality "1"]
[TimeControl "180+2"]

1. d4 {[%emt 0:00:00]} g6 {[%emt 0:00:01]} 2. e4 {[%emt 0:00:09]} d6 {[%emt 0:00:01]} 3. Nf3 {[%emt 0:00:02]} Nf6 {[%emt 0:00:02]} 4. Bd3 {[%emt 0:00:02]} Bg7 {[%emt 0:00:10]} 5. O-O {[%emt 0:00:02]} O-O {[%emt 0:00:00]} 6. c3 {[%emt 0:00:02]} Nc6 {[%emt 0:00:08]} 7. Re1 {[%emt 0:00:00]} e5 {[%emt 0:00:09]} 8. h3 {[%emt 0:00:01]} Re8 {[%emt 0:00:21]} 9. d5 {[%emt 0:00:12]} Nb8 {[%emt 0:00:11]} 10. c4 {[%emt 0:00:11]} a5 {[%emt 0:00:02]} 11. Nc3 {[%emt 0:00:02]} Na6 {[%emt 0:00:00]} 12. a3 {[%emt 0:00:09]} Bd7 {[%emt 0:00:02]} 13. Rb1 {[%emt 0:00:02]} Nc5 {[%emt 0:00:25]} 14. Bc2 {[%emt 0:00:02]} a4 {[%emt 0:01:06]} 15. Be3 {[%emt 0:00:02]} Nb3 {[%emt 0:00:01]} 16. Bxb3 {[%emt 0:00:37]} axb3 {[%emt 0:00:01]} 17. c5 {[%emt 0:00:01]} c6 {[%emt 0:00:04]} 18. Qxb3 {[%emt 0:00:13]} cxd5 {[%emt 0:00:05]} 19. exd5 {[%emt 0:00:06]} dxc5 {[%emt 0:00:19]} 20. Bxc5 {[%emt 0:00:04]} Bf5 {[%emt 0:00:02]} 21. Rbd1 {[%emt 0:00:08]} Nd7 {[%emt 0:00:02]} 22. Be3 {[%emt 0:00:15]} e4 {[%emt 0:00:01]} 23. Nd4 {[%emt 0:00:34]} Nc5 {[%emt 0:00:01]} 24. Qc2 {[%emt 0:00:23]} Nd3 {[%emt 0:00:02]} 25. Rf1 {[%emt 0:00:00]} Rc8 {[%emt 0:00:04]} 26. Qd2 {[%emt 0:00:05]} h5 {[%emt 0:00:06]} 27. f3 {[%emt 0:00:11]} Ne5 {[%emt 0:00:13]} 28. Nxf5 {[%emt 0:00:07]} Nc4 {[%emt 0:00:03]} 29. Qf2 {[%emt 0:00:06]} gxf5 {[%emt 0:00:10]} 30. fxe4 {[%emt 0:00:01]} Nxb2 {[%emt 0:00:00]} 31. Qxb2 {[%emt 0:00:04]} Bxc3 {[%emt 0:00:00]} 32. Qf2 {[%emt 0:00:05]} Rxe4 {[%emt 0:00:00]} 33. Qxf5 {[%emt 0:00:04]} Rxe3 {[%emt 0:00:00]} 34. Qxf7+ {[%emt 0:00:00]} Kh8 {[%emt 0:00:00]} 35. Qxh5+ {[%emt 0:00:02]} Kg8 {[%emt 0:00:01]} 36. Qf7+ {[%emt 0:00:03]} Kh8 {[%emt 0:00:01]} 37. Rf5 {[%emt 0:00:02]} 1-0

[Event "7th Altibox Norway Chess Blitz 2019"]
[Site "Stavanger"]
[Date "2019.06.03"]
[Round "3.1"]
[White "Yu, Yangyi"]
[Black "Carlsen, Magnus"]
[Result "0-1"]
[ECO "E90"]
[WhiteElo "2705"]
[BlackElo "2923"]
[Annotator "RC"]
[PlyCount "86"]
[EventDate "2019.06.03"]
[EventType "tourn"]
[EventCountry "NOR"]
[SourceTitle "playchess.com"]
[Source "ChessBase"]
[SourceQuality "1"]
[TimeControl "180+2"]

1. d4 {[%emt 0:00:00]} Nf6 {[%emt 0:00:00]} 2. c4 {[%emt 0:00:01]} c5 {[%emt 0:00:01]} 3. d5 {[%emt 0:00:11]} g6 {[%emt 0:00:02]} 4. Nc3 {[%emt 0:00:03]} Bg7 {[%emt 0:00:01]} 5. e4 {[%emt 0:00:03]} d6 {[%emt 0:00:02]} 6. Bd3 {[%emt 0:00:11]} O-O {[%emt 0:00:04]} 7. Nf3 {[%emt 0:00:07]} e5 {[%emt 0:00:09]} 8. O-O {[%emt 0:00:10]} Nh5 {[%emt 0:00:10]} 9. Ne1 {[%emt 0:00:14]} Nd7 {[%emt 0:00:04]} 10. Bc2 {[%emt 0:00:05]} Nf4 {[%emt 0:00:14]} 11. Nd3 {[%emt 0:00:06]} Nxd3 {[%emt 0:00:03]} 12. Qxd3 {[%emt 0:00:15]} f5 {[%emt 0:00:11]} 13. exf5 {[%emt 0:00:19]} gxf5 {[%emt 0:00:02]} 14. f4 {[%emt 0:00:07]} e4 {[%emt 0:00:02]} 15. Qe2 {[%emt 0:00:09]} Nf6 {[%emt 0:00:09]} 16. Nd1 {[%emt 0:00:03]} b5 {[%emt 0:00:03]} 17. cxb5 {[%emt 0:00:11]} a6 {[%emt 0:00:03]} 18. b6 {[%emt 0:00:20]} Ng4 {[%emt 0:00:18]} 19. Ne3 {[%emt 0:00:11]} Bd4 {[%emt 0:00:21]} 20. h3 {[%emt 0:00:10]} Nf6 {[%emt 0:00:01]} 21. Kh1 {[%emt 0:00:03]} Rb8 {[%emt 0:00:07]} 22. Rb1 {[%emt 0:00:07]} Rxb6 {[%emt 0:00:01]} 23. Bd2 {[%emt 0:00:03]} Rb7 {[%emt 0:00:19]} 24. Bc3 {[%emt 0:00:06]} Qe8 {[%emt 0:00:11]} 25. Rbd1 {[%emt 0:00:05]} Nh5 {[%emt 0:00:03]} 26. Qe1 {[%emt 0:00:07]} Qg6 {[%emt 0:00:04]} 27. Kh2 {[%emt 0:00:08]} Qf6 {[%emt 0:00:13]} 28. Qd2 {[%emt 0:00:10]} Qh4 {[%emt 0:00:04]} 29. Qe1 {[%emt 0:00:04]} Qf6 {[%emt 0:00:11]} 30. Qd2 {[%emt 0:00:00]} Rg7 {[%emt 0:00:01]} 31. Bxd4 {[%emt 0:00:11]} cxd4 {[%emt 0:00:01]} 32. Qxd4 {[%emt 0:00:00]} Qh4 {[%emt 0:00:01]} 33. Qd2 {[%emt 0:00:01]} Qg3+ {[%emt 0:00:04]} 34. Kh1 {[%emt 0:00:01]} Nxf4 {[%emt 0:00:01]} 35. Qf2 {[%emt 0:00:01]} Nh5 {[%emt 0:00:02]} 36. Rde1 {[%emt 0:00:04]} f4 {[%emt 0:00:04]} 37. Nc4 {[%emt 0:00:03]} e3 {[%emt 0:00:04]} 38. Nxe3 {[%emt 0:00:02]} Bxh3 {[%emt 0:00:09]} 39. Qxg3 {[%emt 0:00:02]} Nxg3+ {[%emt 0:00:01]} 40. Kh2 Nxf1+ {[%emt 0:00:02]} 41. Nxf1 {[%emt 0:00:03]} Bxg2 {[%emt 0:00:02]} 42. Nd2 {[%emt 0:00:03]} f3 {[%emt 0:00:07]} 43. Rg1 Rf6 {[%emt 0:00:01]} 0-1

[Event "7th Altibox Norway Chess Blitz 2019"]
[Site "Stavanger"]
[Date "2019.06.03"]
[Round "3.5"]
[White "Ding, Liren"]
[Black "So, Wesley"]
[Result "1-0"]
[ECO "A29"]
[WhiteElo "2773"]
[BlackElo "2759"]
[Annotator "RC"]
[PlyCount "127"]
[EventDate "2019.06.03"]
[EventType "tourn"]
[EventCountry "NOR"]
[SourceTitle "playchess.com"]
[Source "ChessBase"]
[SourceQuality "1"]
[TimeControl "180+2"]

1. c4 {[%emt 0:00:00]} e5 {[%emt 0:00:03]} 2. g3 {[%emt 0:00:03]} Nf6 {[%emt 0:00:02]} 3. Bg2 {[%emt 0:00:00]} d5 {[%emt 0:00:03]} 4. cxd5 {[%emt 0:00:02]} Nxd5 {[%emt 0:00:00]} 5. Nf3 {[%emt 0:00:01]} Nc6 {[%emt 0:00:11]} 6. O-O {[%emt 0:00:01]} Nb6 {[%emt 0:00:00]} 7. Nc3 {[%emt 0:00:01]} Be7 {[%emt 0:00:00]} 8. d3 {[%emt 0:00:02]} O-O {[%emt 0:00:04]} 9. Be3 {[%emt 0:00:01]} Re8 {[%emt 0:00:00]} 10. Rc1 {[%emt 0:00:01]} Bf8 {[%emt 0:00:00]} 11. Bg5 {[%emt 0:00:01]} f6 {[%emt 0:00:00]} 12. Be3 {[%emt 0:00:01]} Be6 {[%emt 0:00:07]} 13. Nd2 {[%emt 0:00:11]} Qd7 {[%emt 0:00:11]} 14. Nb3 {[%emt 0:00:02]} Nd5 {[%emt 0:00:14]} 15. Bc5 {[%emt 0:00:01]} Nxc3 {[%emt 0:00:21]} 16. Rxc3 {[%emt 0:00:19]} Bd6 {[%emt 0:00:06]} 17. Bxd6 {[%emt 0:00:17]} cxd6 {[%emt 0:00:05]} 18. d4 {[%emt 0:00:02]} Bh3 {[%emt 0:00:35]} 19. dxe5 {[%emt 0:00:15]} Bxg2 {[%emt 0:00:10]} 20. Kxg2 {[%emt 0:00:01]} Rxe5 {[%emt 0:00:01]} 21. e3 {[%emt 0:00:11]} d5 {[%emt 0:00:08]} 22. Nc5 {[%emt 0:00:15]} Qf7 {[%emt 0:00:04]} 23. Qb3 {[%emt 0:00:09]} Re7 {[%emt 0:00:13]} 24. Rd1 {[%emt 0:00:05]} Rd8 {[%emt 0:00:01]} 25. Rcd3 {[%emt 0:00:29]} b6 {[%emt 0:00:06]} 26. Na4 {[%emt 0:00:01]} d4 {[%emt 0:00:09]} 27. Qxf7+ {[%emt 0:00:27]} Kxf7 {[%emt 0:00:02]} 28. exd4 {[%emt 0:00:01]} Red7 {[%emt 0:00:04]} 29. Nc3 {[%emt 0:00:03]} Rxd4 {[%emt 0:00:03]} 30. Rxd4 {[%emt 0:00:11]} Rxd4 {[%emt 0:00:03]} 31. Kf3 {[%emt 0:00:00]} Rxd1 {[%emt 0:00:07]} 32. Nxd1 {[%emt 0:00:00]} Ke6 {[%emt 0:00:10]} 33. Nc3 {[%emt 0:00:00]} Ne5+ {[%emt 0:00:00]} 34. Ke2 {[%emt 0:00:10]} h5 {[%emt 0:00:00]} 35. f4 {[%emt 0:00:03]} Nc6 {[%emt 0:00:05]} 36. Ke3 {[%emt 0:00:06]} g5 {[%emt 0:00:08]} 37. fxg5 {[%emt 0:00:02]} fxg5 {[%emt 0:00:03]} 38. Ke4 {[%emt 0:00:03]} Ne5 {[%emt 0:00:14]} 39. Nb5 {[%emt 0:00:02]} Ng4 {[%emt 0:00:05]} 40. h4 {[%emt 0:00:04]} Nf6+ {[%emt 0:00:03]} 41. Kf3 {[%emt 0:00:08]} gxh4 {[%emt 0:00:02]} 42. gxh4 {[%emt 0:00:01]} a5 {[%emt 0:00:07]} 43. Kf4 {[%emt 0:00:01]} Nd5+ {[%emt 0:00:10]} 44. Kg5 {[%emt 0:00:01]} Nb4 {[%emt 0:00:01]} 45. Kxh5 {[%emt 0:00:07]} Kf6 {[%emt 0:00:01]} 46. a3 {[%emt 0:00:10]} Nd3 {[%emt 0:00:02]} 47. b3 {[%emt 0:00:01]} Nc5 {[%emt 0:00:01]} 48. Nc3 {[%emt 0:00:10]} Nxb3 {[%emt 0:00:06]} 49. Nd5+ {[%emt 0:00:01]} Kf5 50. Nxb6 {[%emt 0:00:00]} Nd2 {[%emt 0:00:05]} 51. Kh6 {[%emt 0:00:04]} Kf6 {[%emt 0:00:01]} 52. h5 {[%emt 0:00:10]} Nb1 {[%emt 0:00:01]} 53. a4 {[%emt 0:00:00]} Nc3 {[%emt 0:00:01]} 54. Kh7 {[%emt 0:00:00]} Ne4 {[%emt 0:00:05]} 55. Nc4 {[%emt 0:00:00]} Kg5 {[%emt 0:00:03]} 56. h6 {[%emt 0:00:03]} Nf6+ {[%emt 0:00:00]} 57. Kg7 {[%emt 0:00:01]} Nh5+ {[%emt 0:00:01]} 58. Kf7 {[%emt 0:00:01]} Kxh6 {[%emt 0:00:01]} 59. Nxa5 {[%emt 0:00:01]} Kg5 {[%emt 0:00:01]} 60. Nc6 {[%emt 0:00:03]} Kf5 {[%emt 0:00:02]} 61. a5 {[%emt 0:00:01]} Nf4 {[%emt 0:00:02]} 62. a6 {[%emt 0:00:02]} Ne6 {[%emt 0:00:06]} 63. Nd4+ {[%emt 0:00:03]} Nxd4 {[%emt 0:00:01]} 64. a7 {[%emt 0:00:01]} 1-0

[Event "7th Altibox Norway Chess Blitz 2019"]
[Site "Stavanger"]
[Date "2019.06.03"]
[Round "4.5"]
[White "Mamedyarov, Shakhriyar"]
[Black "Ding, Liren"]
[Result "0-1"]
[ECO "E20"]
[WhiteElo "2757"]
[BlackElo "2773"]
[Annotator "RC"]
[PlyCount "72"]
[EventDate "2019.06.03"]
[EventType "tourn"]
[EventCountry "NOR"]
[SourceTitle "playchess.com"]
[Source "ChessBase"]
[SourceQuality "1"]
[TimeControl "180+2"]

1. d4 {[%emt 0:00:00]} Nf6 {[%emt 0:00:00]} 2. c4 {[%emt 0:00:00]} e6 {[%emt 0:00:00]} 3. Nc3 {[%emt 0:00:00]} Bb4 {[%emt 0:00:01]} 4. f3 {[%emt 0:00:01]} c5 {[%emt 0:00:25]} 5. d5 {[%emt 0:00:10]} O-O {[%emt 0:00:06]} 6. e4 {[%emt 0:00:00]} b5 {[%emt 0:00:02]} 7. e5 {[%emt 0:00:00]} Ne8 {[%emt 0:00:01]} 8. f4 {[%emt 0:00:05]} exd5 {[%emt 0:00:22]} 9. cxd5 {[%emt 0:00:01]} d6 {[%emt 0:00:01]} 10. Nf3 {[%emt 0:00:11]} a6 {[%emt 0:01:13]} 11. Bd3 {[%emt 0:00:55]} c4 {[%emt 0:00:10]} 12. Bxh7+ {[%emt 0:00:05]} Kxh7 {[%emt 0:00:06]} 13. Ng5+ {[%emt 0:00:01]} Kg8 {[%emt 0:00:01]} 14. Qh5 {[%emt 0:00:33]} Bf5 {[%emt 0:00:01]} 15. g4 {[%emt 0:00:01]} Bg6 {[%emt 0:00:08]} 16. Qh3 {[%emt 0:00:01]} f5 {[%emt 0:00:14]} 17. Ne6 {[%emt 0:00:18]} Qe7 {[%emt 0:00:04]} 18. Nxf8 {[%emt 0:00:35]} Qxf8 {[%emt 0:00:01]} 19. Bd2 {[%emt 0:00:01]} Nd7 {[%emt 0:00:04]} 20. e6 {[%emt 0:00:06]} Nc5 {[%emt 0:00:01]} 21. O-O {[%emt 0:00:17]} Nc7 {[%emt 0:00:09]} 22. Rae1 {[%emt 0:00:07]} Nd3 {[%emt 0:00:05]} 23. Re2 {[%emt 0:00:12]} Bc5+ {[%emt 0:00:01]} 24. Kh1 {[%emt 0:00:00]} b4 {[%emt 0:00:01]} 25. Na4 {[%emt 0:00:02]} Nxd5 {[%emt 0:00:01]} 26. b3 {[%emt 0:00:03]} fxg4 {[%emt 0:00:06]} 27. Qxg4 {[%emt 0:00:01]} Bf5 {[%emt 0:00:21]} 28. Qf3 {[%emt 0:00:01]} Nc7 {[%emt 0:00:03]} 29. bxc4 {[%emt 0:00:02]} Re8 {[%emt 0:00:01]} 30. Qc6 {[%emt 0:00:04]} Rxe6 {[%emt 0:00:03]} 31. Rxe6 Nxe6 {[%emt 0:00:01]} 32. Qd5 {[%emt 0:00:07]} Qf7 {[%emt 0:00:03]} 33. Rf3 {[%emt 0:00:01]} Qg6 {[%emt 0:00:02]} 34. Nxc5 {[%emt 0:00:02]} dxc5 {[%emt 0:00:02]} 35. Qa8+ {[%emt 0:00:02]} Kh7 36. Re3 {[%emt 0:00:02]} Nexf4 0-1